[Event "11th Arad Open 2018"]
[Site "Arad"]
[Date "2018.08.12"]
[Round "9"]
[White "Soltanici, Ruslan"]
[Black "Vujacic, Borivoje"]
[Result "1-0"]
[ECO "B30"]
[WhiteElo "2383"]
[BlackElo "2235"]
[Annotator "NA"]
[PlyCount "91"]
[EventDate "2018.08.05"]
[EventType "swiss"]
[EventCountry "ROU"]
[SourceTitle "playchess.com"]
[Source "ChessBase"]
[SourceQuality "1"]
[TimeControl "40/5400+30:1800+30"]

1. e4 {[%emt 0:00:00]} c5 {[%emt 0:00:03]} 2. Nf3 {[%emt 0:00:00]} Nc6 {[%emt 0:00:08]} 3. Bb5 {[%emt 0:00:12]} d6 {[%emt 0:01:47]} 4. O-O {[%emt 0:00:44]} Bd7 {[%emt 0:00:13]} 5. Re1 {[%emt 0:00:29]} a6 {[%emt 0:00:29]} 6. Bxc6 {[%emt 0:02:07]} Bxc6 {[%emt 0:00:08]} 7. d4 {[%emt 0:00:07]} cxd4 {[%emt 0:00:05]} 8. Nxd4 {[%emt 0:00:07]} Rc8 {[%emt 0:00:05]} 9. c4 {[%emt 0:00:52]} Nf6 {[%emt 0:00:18]} 10. Nc3 {[%emt 0:02:00]} g6 {[%emt 0:07:56]} 11. Bg5 {[%emt 0:07:16]} Bg7 {[%emt 0:01:04]} 12. Qd2 {[%emt 0:00:14]} O-O {[%emt 0:00:27]} 13. Rad1 {[%emt 0:03:03]} Qb6 {[%emt 0:08:05]} 14. b3 {[%emt 0:03:32]} Rfe8 {[%emt 0:05:21]} 15. Kh1 {[%emt 0:05:24]} Ng4 {[%emt 0:07:35]} 16. Re2 {[%emt 0:10:51]} h6 {[%emt 0:04:02]} 17. Bh4 {[%emt 0:01:19]} Qa5 {[%emt 0:02:49]} 18. f3 {[%emt 0:05:26]} Nf6 {[%emt 0:05:35]} 19. Bf2 {[%emt 0:34:18]} b5 {[%emt 0:09:23]} 20. cxb5 {[%emt 0:01:08]} Bd7 {[%emt 0:02:13]} 21. Be1 {[%emt 0:04:24]} axb5 {[%emt 0:05:47]} 22. Ncxb5 {[%emt 0:00:38]} Qa6 {[%emt 0:00:07]} 23. Qa5 {[%emt 0:05:55]} Qb7 {[%emt 0:12:10]} 24. a4 {[%emt 0:01:32]} Ra8 {[%emt 0:02:13]} 25. Qc7 {[%emt 0:04:20]} Qa6 {[%emt 0:00:29]} 26. Qc4 {[%emt 0:01:13]} Rec8 {[%emt 0:01:20]} 27. Qd3 {[%emt 0:00:14]} Nh5 {[%emt 0:01:37]} 28. g3 {[%emt 0:00:35]} e5 {[%emt 0:00:31]} 29. Nc2 {[%emt 0:00:15]} Bxb5 {[%emt 0:02:42]} 30. axb5 {[%emt 0:00:33]} Qb7 {[%emt 0:01:19]} 31. Bf2 {[%emt 0:02:14]} Ra2 {[%emt 0:01:14]} 32. Nb4 {[%emt 0:00:34]} Rxe2 {[%emt 0:01:47]} 33. Qxe2 {[%emt 0:00:02]} Rc3 {[%emt 0:00:56]} 34. Nd5 {[%emt 0:03:13]} Rxb3 {[%emt 0:00:17]} 35. b6 {[%emt 0:00:01]} Qd7 {[%emt 0:01:42]} 36. Kg2 {[%emt 0:00:27]} Kh7 {[%emt 0:04:18]} 37. Rd2 {[%emt 0:00:50]} f5 {[%emt 0:00:57]} 38. Rb2 {[%emt 0:00:35]} Rxb2 {[%emt 0:00:57]} 39. Qxb2 {[%emt 0:00:03]} fxe4 {[%emt 0:00:09]} 40. fxe4 {[%emt 0:00:00]} Qg4 {[%emt 0:00:00]} 41. b7 {[%emt 0:21:35]} Qxe4+ {[%emt 0:17:59]} 42. Kg1 {[%emt 0:00:59]} Qxd5 {[%emt 0:00:33]} 43. b8=Q {[%emt 0:00:35]} Qd1+ {[%emt 0:00:14]} 44. Kg2 {[%emt 0:00:54]} e4 {[%emt 0:00:10]} 45. Q2b3 {[%emt 0:00:43]} Qg4 {[%emt 0:00:27]} 46. Q3g8# {[%emt 0:00:10]} 1-0

[Event "11th Arad Open 2018"]
[Site "Arad"]
[Date "2018.08.12"]
[Round "9"]
[White "Peptan, Corina-Isabela"]
[Black "Kutnik, Alexandru-Francisc"]
[Result "1-0"]
[ECO "A43"]
[WhiteElo "2380"]
[BlackElo "1986"]
[Annotator "NA"]
[PlyCount "89"]
[EventDate "2018.08.05"]
[EventType "swiss"]
[EventCountry "ROU"]
[SourceTitle "playchess.com"]
[Source "ChessBase"]
[SourceQuality "1"]
[TimeControl "40/5400+30:1800+30"]

1. d4 {[%emt 0:01:49]} c5 {[%emt 0:00:00]} 2. d5 {[%emt 0:00:29]} e6 {[%emt 0:00:00]} 3. Nc3 {[%emt 0:01:23]} d6 {[%emt 0:00:36]} 4. e4 {[%emt 0:02:23]} a6 {[%emt 0:00:41]} 5. a4 {[%emt 0:00:23]} Nf6 {[%emt 0:00:13]} 6. Nf3 {[%emt 0:06:27]} exd5 {[%emt 0:00:09]} 7. exd5 {[%emt 0:00:01]} Bg4 {[%emt 0:00:18]} 8. Be2 {[%emt 0:00:04]} Bxf3 {[%emt 0:00:08]} 9. Bxf3 {[%emt 0:00:05]} Be7 {[%emt 0:00:05]} 10. O-O {[%emt 0:00:15]} O-O {[%emt 0:00:01]} 11. Bf4 {[%emt 0:01:32]} Ne8 {[%emt 0:01:22]} 12. Ne4 {[%emt 0:05:48]} Nd7 {[%emt 0:00:38]} 13. a5 {[%emt 0:03:09]} Ne5 {[%emt 0:01:54]} 14. Bxe5 {[%emt 0:21:43]} dxe5 {[%emt 0:00:02]} 15. d6 {[%emt 0:03:35]} Bxd6 {[%emt 0:35:06]} 16. Qd5 {[%emt 0:00:12]} Qe7 {[%emt 0:00:02]} 17. Rfe1 {[%emt 0:13:04]} Rd8 {[%emt 0:02:08]} 18. Nxd6 {[%emt 0:02:09]} Rxd6 {[%emt 0:02:52]} 19. Rxe5 {[%emt 0:17:42]} Rxd5 {[%emt 0:00:45]} 20. Rxe7 {[%emt 0:00:02]} Rd2 {[%emt 0:00:09]} 21. Rxb7 {[%emt 0:00:57]} Rxc2 {[%emt 0:00:16]} 22. Rd1 {[%emt 0:00:52]} Nf6 {[%emt 0:00:48]} 23. h3 {[%emt 0:02:41]} h6 {[%emt 0:01:16]} 24. Bc6 {[%emt 0:00:19]} c4 {[%emt 0:05:44]} 25. Rb6 {[%emt 0:00:09]} Rc8 {[%emt 0:00:30]} 26. Ba4 {[%emt 0:01:52]} Re2 {[%emt 0:00:09]} 27. Kf1 {[%emt 0:00:08]} Re6 {[%emt 0:01:37]} 28. Rxe6 {[%emt 0:01:44]} fxe6 {[%emt 0:00:02]} 29. Rd6 {[%emt 0:00:15]} Rb8 {[%emt 0:07:17]} 30. Rb6 {[%emt 0:00:07]} Rd8 {[%emt 0:00:01]} 31. Rxa6 {[%emt 0:04:12]} Rd5 {[%emt 0:01:32]} 32. Ra8+ {[%emt 0:07:23]} Kf7 {[%emt 0:00:11]} 33. a6 {[%emt 0:00:29]} Ra5 {[%emt 0:00:41]} 34. Bc6 {[%emt 0:00:43]} Nd5 {[%emt 0:02:15]} 35. Bb7 {[%emt 0:01:07]} Ra2 {[%emt 0:01:13]} 36. Rc8 {[%emt 0:00:26]} Nf4 {[%emt 0:04:44]} 37. Kg1 {[%emt 0:00:25]} Ra1+ {[%emt 0:02:40]} 38. Kh2 {[%emt 0:00:05]} Ra4 {[%emt 0:00:32]} 39. Rc7+ {[%emt 0:01:25]} Kf6 {[%emt 0:00:03]} 40. Bc8 {[%emt 0:00:00]} Nd5 {[%emt 0:00:00]} 41. Rc6 {[%emt 0:17:12]} Ne7 {[%emt 0:15:33]} 42. Rxe6+ {[%emt 0:00:14]} Kf7 {[%emt 0:00:01]} 43. Bd7 {[%emt 0:00:07]} Ra5 {[%emt 0:01:37]} 44. Rb6 {[%emt 0:00:19]} Ra1 {[%emt 0:02:07]} 45. Be6+ {[%emt 0:00:14]} 1-0

[Event "11th Arad Open 2018"]
[Site "Arad"]
[Date "2018.08.12"]
[Round "9"]
[White "Farkas, Gabor"]
[Black "Creanga, Robert-Ionut"]
[Result "1-0"]
[ECO "B33"]
[WhiteElo "2366"]
[BlackElo "2069"]
[Annotator "NA"]
[PlyCount "65"]
[EventDate "2018.08.05"]
[EventType "swiss"]
[EventCountry "ROU"]
[SourceTitle "playchess.com"]
[Source "ChessBase"]
[SourceQuality "1"]
[TimeControl "40/5400+30:1800+30"]

1. e4 {[%emt 0:00:00]} c5 {[%emt 0:00:00]} 2. Nf3 {[%emt 0:00:00]} Nc6 {[%emt 0:00:00]} 3. d4 {[%emt 0:00:00]} cxd4 {[%emt 0:00:00]} 4. Nxd4 {[%emt 0:00:00]} Nf6 {[%emt 0:00:00]} 5. Nc3 {[%emt 0:00:00]} e5 {[%emt 0:00:00]} 6. Ndb5 {[%emt 0:00:00]} d6 {[%emt 0:00:03]} 7. Bg5 {[%emt 0:00:02]} a6 {[%emt 0:00:04]} 8. Na3 {[%emt 0:00:05]} b5 {[%emt 0:00:03]} 9. Bxf6 {[%emt 0:00:05]} gxf6 {[%emt 0:00:04]} 10. Nd5 {[%emt 0:00:05]} f5 {[%emt 0:00:05]} 11. c3 {[%emt 0:00:05]} Bg7 {[%emt 0:00:12]} 12. exf5 {[%emt 0:00:07]} Bxf5 {[%emt 0:00:05]} 13. Nc2 {[%emt 0:00:04]} O-O {[%emt 0:00:08]} 14. Nce3 {[%emt 0:00:03]} Be6 {[%emt 0:00:05]} 15. Bd3 {[%emt 0:00:04]} f5 {[%emt 0:00:04]} 16. Bc2 {[%emt 0:00:03]} Ne7 {[%emt 0:13:48]} 17. Nxe7+ {[%emt 0:01:06]} Qxe7 {[%emt 0:00:04]} 18. Bxf5 {[%emt 0:00:30]} Bxf5 {[%emt 0:06:12]} 19. Nxf5 {[%emt 0:00:09]} Qf6 {[%emt 0:00:06]} 20. g4 {[%emt 0:00:06]} Rad8 {[%emt 0:01:36]} 21. Qd5+ {[%emt 0:01:48]} Kh8 {[%emt 0:00:17]} 22. h3 {[%emt 0:00:33]} Bh6 {[%emt 0:01:26]} 23. Rd1 {[%emt 0:02:38]} Bf4 {[%emt 0:01:09]} 24. Qe4 {[%emt 0:06:36]} Qg6 {[%emt 0:06:15]} 25. f3 {[%emt 0:06:02]} h5 {[%emt 0:09:06]} 26. Rd5 {[%emt 0:01:38]} Rd7 {[%emt 0:00:56]} 27. Kd1 {[%emt 0:01:10]} Rc8 {[%emt 0:01:51]} 28. Kc2 {[%emt 0:00:45]} Rc4 {[%emt 0:00:50]} 29. Qd3 {[%emt 0:00:48]} Rc6 {[%emt 0:00:29]} 30. Rd1 {[%emt 0:00:22]} Kh7 {[%emt 0:00:57]} 31. gxh5 {[%emt 0:00:44]} Qg2+ {[%emt 0:00:07]} 32. Kb1 {[%emt 0:00:33]} Kh8 {[%emt 0:00:16]} 33. Nxd6 {[%emt 0:01:14]} 1-0

[Event "11th Arad Open 2018"]
[Site "Arad"]
[Date "2018.08.12"]
[Round "9"]
[White "Dobre, Claudiu-Cristian"]
[Black "Martian, Dragos-Daniel"]
[Result "0-1"]
[ECO "A01"]
[WhiteElo "2356"]
[BlackElo "2223"]
[Annotator "NA"]
[PlyCount "74"]
[EventDate "2018.08.05"]
[EventType "swiss"]
[EventCountry "ROU"]
[SourceTitle "playchess.com"]
[Source "ChessBase"]
[SourceQuality "1"]
[TimeControl "40/5400+30:1800+30"]

1. b3 {[%emt 0:00:00]} Nf6 {[%emt 0:05:04]} 2. Bb2 {[%emt 0:00:00]} e6 {[%emt 0:00:16]} 3. e3 {[%emt 0:00:10]} c5 {[%emt 0:01:17]} 4. Nf3 {[%emt 0:00:13]} d5 {[%emt 0:00:24]} 5. c4 {[%emt 0:00:09]} Bd6 {[%emt 0:00:59]} 6. cxd5 {[%emt 0:07:51]} exd5 {[%emt 0:00:13]} 7. Bxf6 {[%emt 0:10:27]} Qxf6 {[%emt 0:02:55]} 8. Nc3 {[%emt 0:03:13]} Be6 {[%emt 0:08:39]} 9. Nb5 {[%emt 0:02:18]} Qd8 {[%emt 0:01:18]} 10. Nxd6+ {[%emt 0:00:31]} Qxd6 {[%emt 0:00:06]} 11. d4 {[%emt 0:03:01]} b6 {[%emt 0:02:40]} 12. Rc1 {[%emt 0:05:52]} O-O {[%emt 0:01:16]} 13. Bd3 {[%emt 0:05:35]} h6 {[%emt 0:03:25]} 14. O-O {[%emt 0:10:40]} Bg4 {[%emt 0:05:39]} 15. h3 {[%emt 0:09:32]} Bxf3 {[%emt 0:03:01]} 16. Qxf3 {[%emt 0:00:08]} cxd4 {[%emt 0:01:01]} 17. exd4 {[%emt 0:08:12]} Nc6 {[%emt 0:01:19]} 18. Bb1 {[%emt 0:00:29]} g6 {[%emt 0:02:53]} 19. Rfd1 {[%emt 0:01:43]} Rac8 {[%emt 0:00:45]} 20. Rc3 {[%emt 0:02:27]} Kg7 {[%emt 0:01:50]} 21. h4 {[%emt 0:07:35]} Rfe8 {[%emt 0:00:57]} 22. Re3 {[%emt 0:03:54]} h5 {[%emt 0:10:39]} 23. g3 {[%emt 0:00:27]} b5 {[%emt 0:02:51]} 24. Kg2 {[%emt 0:00:51]} b4 {[%emt 0:00:54]} 25. Qe2 {[%emt 0:01:09]} Re7 {[%emt 0:08:01]} 26. Qa6 {[%emt 0:05:17]} Rxe3 {[%emt 0:04:16]} 27. fxe3 {[%emt 0:00:12]} Re8 {[%emt 0:00:28]} 28. e4 {[%emt 0:00:57]} Qd7 {[%emt 0:11:11]} 29. e5 {[%emt 0:02:02]} Qg4 {[%emt 0:01:25]} 30. Rf1 {[%emt 0:04:45]} Re6 {[%emt 0:03:13]} 31. Qb7 {[%emt 0:00:30]} Ne7 {[%emt 0:00:23]} 32. Qxa7 {[%emt 0:01:20]} g5 {[%emt 0:03:07]} 33. Rf6 {[%emt 0:04:22]} gxh4 {[%emt 0:02:49]} 34. Rxe6 {[%emt 0:00:25]} Qe2+ {[%emt 0:02:40]} 35. Kg1 {[%emt 0:00:41]} hxg3 {[%emt 0:00:33]} 36. Rf6 {[%emt 0:00:14]} Qh2+ {[%emt 0:00:13]} 37. Kf1 {[%emt 0:00:04]} g2+ {[%emt 0:00:05]} 0-1

[Event "11th Arad Open 2018"]
[Site "Arad"]
[Date "2018.08.12"]
[Round "9"]
[White "Toma, Radu-Cristian"]
[Black "Bucur, Denisa-Andreea"]
[Result "1-0"]
[ECO "A06"]
[WhiteElo "2354"]
[BlackElo "2077"]
[Annotator "NA"]
[PlyCount "89"]
[EventDate "2018.08.05"]
[EventType "swiss"]
[EventCountry "ROU"]
[SourceTitle "playchess.com"]
[Source "ChessBase"]
[SourceQuality "1"]
[TimeControl "40/5400+30:1800+30"]

1. Nf3 {[%emt 0:07:21]} d5 {[%emt 0:00:00]} 2. e3 {[%emt 0:00:15]} Nf6 {[%emt 0:00:25]} 3. c4 {[%emt 0:01:40]} dxc4 {[%emt 0:01:26]} 4. Bxc4 {[%emt 0:00:07]} e6 {[%emt 0:00:54]} 5. O-O {[%emt 0:00:40]} a6 {[%emt 0:01:27]} 6. Re1 {[%emt 0:08:13]} b5 {[%emt 0:01:40]} 7. Bf1 {[%emt 0:02:40]} Bb7 {[%emt 0:01:15]} 8. a4 {[%emt 0:00:17]} b4 {[%emt 0:02:29]} 9. d3 {[%emt 0:04:03]} c5 {[%emt 0:02:20]} 10. Nbd2 {[%emt 0:01:50]} Nbd7 {[%emt 0:02:07]} 11. a5 {[%emt 0:08:28]} Qc7 {[%emt 0:05:19]} 12. Nc4 {[%emt 0:02:09]} Be7 {[%emt 0:00:47]} 13. e4 {[%emt 0:05:41]} e5 {[%emt 0:03:44]} 14. b3 {[%emt 0:01:58]} O-O {[%emt 0:01:25]} 15. Bb2 {[%emt 0:02:41]} Bd6 {[%emt 0:00:13]} 16. Nh4 {[%emt 0:09:46]} Rfe8 {[%emt 0:05:45]} 17. Nxd6 {[%emt 0:14:27]} Qxd6 {[%emt 0:00:07]} 18. Nf5 {[%emt 0:00:27]} Qc7 {[%emt 0:00:41]} 19. h4 {[%emt 0:05:34]} Nf8 {[%emt 0:07:17]} 20. f4 {[%emt 0:01:05]} Ng6 {[%emt 0:00:36]} 21. g3 {[%emt 0:01:53]} exf4 {[%emt 0:08:15]} 22. Bxf6 {[%emt 0:03:16]} gxf6 {[%emt 0:00:25]} 23. h5 {[%emt 0:02:52]} fxg3 {[%emt 0:00:55]} 24. hxg6 {[%emt 0:01:10]} fxg6 {[%emt 0:00:18]} 25. Qg4 {[%emt 0:02:04]} Re5 {[%emt 0:04:51]} 26. d4 {[%emt 0:04:18]} cxd4 {[%emt 0:03:07]} 27. Rac1 {[%emt 0:00:13]} Rc5 {[%emt 0:05:28]} 28. Bc4+ {[%emt 0:01:08]} Kh8 {[%emt 0:02:53]} 29. Nxd4 {[%emt 0:00:26]} Qxa5 {[%emt 0:04:32]} 30. Qe6 {[%emt 0:04:11]} Qd8 {[%emt 0:00:56]} 31. Nf3 {[%emt 0:03:19]} Bc8 {[%emt 0:04:27]} 32. Qf7 {[%emt 0:00:05]} Bg4 {[%emt 0:00:26]} 33. Kg2 {[%emt 0:01:17]} Rc7 {[%emt 0:06:12]} 34. Qd5 {[%emt 0:00:24]} Rd7 {[%emt 0:00:42]} 35. Qc5 {[%emt 0:00:39]} Bxf3+ {[%emt 0:01:30]} 36. Kxf3 {[%emt 0:00:02]} Qc7 {[%emt 0:03:54]} 37. Bd5 {[%emt 0:01:09]} Qxc5 {[%emt 0:02:03]} 38. Rxc5 {[%emt 0:00:02]} Rad8 {[%emt 0:05:05]} 39. Bc4 {[%emt 0:00:23]} Rd1 {[%emt 0:03:06]} 40. Rxd1 {[%emt 0:00:00]} Rxd1 {[%emt 0:00:00]} 41. Kxg3 {[%emt 0:17:02]} Re1 {[%emt 0:19:28]} 42. Kf4 {[%emt 0:00:44]} g5+ {[%emt 0:00:49]} 43. Kf5 {[%emt 0:00:34]} g4 {[%emt 0:02:52]} 44. Kxf6 {[%emt 0:00:07]} h5 {[%emt 0:00:09]} 45. Kg6 {[%emt 0:00:05]} 1-0

[Event "11th Arad Open 2018"]
[Site "Arad"]
[Date "2018.08.12"]
[Round "9"]
[White "Posedaru, Bogdan"]
[Black "Isfan, Ioan-Marius"]
[Result "1-0"]
[ECO "E32"]
[WhiteElo "2326"]
[BlackElo "1933"]
[Annotator "NA"]
[PlyCount "69"]
[EventDate "2018.08.05"]
[EventType "swiss"]
[EventCountry "ROU"]
[SourceTitle "playchess.com"]
[Source "ChessBase"]
[SourceQuality "1"]
[TimeControl "40/5400+30:1800+30"]

1. d4 {[%emt 0:00:00]} Nf6 {[%emt 0:09:04]} 2. c4 {[%emt 0:00:00]} e6 {[%emt 0:00:05]} 3. Nc3 {[%emt 0:00:00]} Bb4 {[%emt 0:00:06]} 4. Qc2 {[%emt 0:00:00]} b6 {[%emt 0:00:06]} 5. e4 {[%emt 0:02:10]} O-O {[%emt 0:05:56]} 6. Bd3 {[%emt 0:03:27]} h6 {[%emt 0:10:37]} 7. Nge2 {[%emt 0:05:02]} Bb7 {[%emt 0:09:28]} 8. O-O {[%emt 0:01:06]} d6 {[%emt 0:01:53]} 9. f4 {[%emt 0:21:41]} Bxc3 {[%emt 0:01:19]} 10. bxc3 {[%emt 0:01:57]} c5 {[%emt 0:00:28]} 11. e5 {[%emt 0:05:21]} Ne8 {[%emt 0:00:19]} 12. Be3 {[%emt 0:01:20]} Nc6 {[%emt 0:10:49]} 13. Rad1 {[%emt 0:00:20]} Qc7 {[%emt 0:00:47]} 14. d5 {[%emt 0:07:26]} Ne7 {[%emt 0:00:38]} 15. Be4 {[%emt 0:02:20]} Rd8 {[%emt 0:00:22]} 16. dxe6 {[%emt 0:06:48]} fxe6 {[%emt 0:02:18]} 17. Ng3 {[%emt 0:00:04]} Bxe4 {[%emt 0:13:09]} 18. Qxe4 {[%emt 0:00:08]} g6 {[%emt 0:01:11]} 19. Qd3 {[%emt 0:03:12]} d5 {[%emt 0:14:39]} 20. cxd5 {[%emt 0:01:07]} Rxd5 {[%emt 0:00:06]} 21. Qe2 {[%emt 0:00:44]} Rxd1 {[%emt 0:02:34]} 22. Rxd1 {[%emt 0:01:34]} Nd5 {[%emt 0:01:18]} 23. Bd2 {[%emt 0:11:01]} c4 {[%emt 0:06:14]} 24. Rf1 {[%emt 0:01:57]} Ng7 {[%emt 0:00:50]} 25. Ne4 {[%emt 0:00:30]} b5 {[%emt 0:02:16]} 26. Qg4 {[%emt 0:01:24]} Kh7 {[%emt 0:00:17]} 27. Qh3 {[%emt 0:00:07]} Qb6+ {[%emt 0:02:55]} 28. Kh1 {[%emt 0:00:05]} Nh5 {[%emt 0:00:05]} 29. Qh4 {[%emt 0:02:13]} a5 {[%emt 0:02:08]} 30. g4 {[%emt 0:07:56]} Rxf4 {[%emt 0:00:47]} 31. Bxf4 {[%emt 0:01:03]} Nhxf4 {[%emt 0:00:05]} 32. Rxf4 {[%emt 0:02:36]} Qc6 {[%emt 0:01:44]} 33. Rf7+ {[%emt 0:01:35]} Kg8 {[%emt 0:00:05]} 34. Rf3 {[%emt 0:00:36]} g5 {[%emt 0:01:43]} 35. Qxh6 {[%emt 0:00:21]} 1-0

[Event "11th Arad Open 2018"]
[Site "Arad"]
[Date "2018.08.12"]
[Round "9"]
[White "Vasiesiu, Victor"]
[Black "Aczel, Gergely"]
[Result "0-1"]
[ECO "B80"]
[WhiteElo "2297"]
[BlackElo "2551"]
[Annotator "ChessBase"]
[PlyCount "180"]
[EventDate "2018.08.05"]
[EventType "swiss"]
[EventCountry "ROU"]
[SourceTitle "playchess.com"]
[Source "ChessBase"]
[SourceQuality "1"]
[TimeControl "40/5400+30:1800+30"]

1. e4 {[%emt 0:00:00]} c5 {[%emt 0:04:45]} 2. Nf3 {[%emt 0:00:00]} d6 {[%emt 0:00:12]} 3. d4 {[%emt 0:00:00]} cxd4 {[%emt 0:00:04]} 4. Nxd4 {[%emt 0:00:00]} Nf6 {[%emt 0:00:05]} 5. Nc3 {[%emt 0:00:00]} e6 {[%emt 0:00:04]} 6. Be3 {[%emt 0:00:09]} a6 {[%emt 0:02:00]} 7. f3 {[%emt 0:00:06]} b5 {[%emt 0:00:25]} 8. Qd2 {[%emt 0:01:33]} Bb7 {[%emt 0:00:32]} 9. g4 {[%emt 0:00:41]} Nfd7 {[%emt 0:10:36]} 10. a3 Nb6 {[%emt 0:04:36]} 11. O-O-O {[%emt 0:13:57]} N8d7 {[%emt 0:00:07]} 12. Nb3 {[%emt 0:05:30]} Rc8 {[%emt 0:01:33]} 13. Na5 {[%emt 0:01:05]} Ba8 {[%emt 0:00:33]} 14. Bf4 {[%emt 0:20:01]} d5 {[%emt 0:13:42]} 15. Kb1 {[%emt 0:06:14]} Be7 {[%emt 0:15:12]} 16. exd5 {[%emt 0:02:56]} Nxd5 {[%emt 0:00:40]} 17. Nxd5 {[%emt 0:00:05]} Bxd5 {[%emt 0:00:07]} 18. Be2 {[%emt 0:00:12]} O-O {[%emt 0:00:59]} 19. Rhe1 {[%emt 0:03:55]} Nb6 {[%emt 0:02:50]} 20. Be5 {[%emt 0:04:34]} Na4 {[%emt 0:13:11]} 21. Nb3 {[%emt 0:08:09]} Bh4 {[%emt 0:05:13]} 22. Rf1 {[%emt 0:02:03]} Bf6 {[%emt 0:00:24]} 23. Qd4 {[%emt 0:06:32]} Bxe5 {[%emt 0:01:06]} 24. Qxe5 {[%emt 0:00:05]} Nb6 {[%emt 0:04:20]} 25. Nd2 {[%emt 0:05:57]} Rc5 {[%emt 0:07:10]} 26. Qe3 {[%emt 0:02:46]} Qc7 {[%emt 0:00:03]} 27. Bd3 {[%emt 0:02:04]} Rc8 {[%emt 0:00:06]} 28. Rc1 {[%emt 0:03:25]} Nc4 {[%emt 0:01:27]} 29. Bxc4 {[%emt 0:01:48]} Bxc4 {[%emt 0:03:52]} 30. Nxc4 {[%emt 0:00:16]} Rxc4 {[%emt 0:00:01]} 31. Rf2 {[%emt 0:00:29]} b4 {[%emt 0:00:06]} 32. Rd2 {[%emt 0:02:09]} a5 {[%emt 0:01:10]} 33. Qd3 {[%emt 0:00:32]} bxa3 {[%emt 0:00:26]} 34. Qxa3 {[%emt 0:00:08]} h6 {[%emt 0:00:25]} 35. Qd6 {[%emt 0:01:48]} Qb7 {[%emt 0:00:12]} 36. f4 {[%emt 0:00:56]} Qe4 {[%emt 0:01:02]} 37. Rf2 {[%emt 0:01:04]} Qe3 {[%emt 0:05:11]} 38. Rcf1 {[%emt 0:00:32]} Qe4 {[%emt 0:00:02]} 39. Rc1 {[%emt 0:00:06]} Rb4 {[%emt 0:00:23]} 40. Qd3 {[%emt 0:00:00]} Rxb2+ {[%emt 0:00:00]} 41. Kxb2 {[%emt 0:17:00]} Qb4+ {[%emt 0:19:27]} 42. Ka2 {[%emt 0:03:33]} Rc3 {[%emt 0:00:03]} 43. Qxc3 {[%emt 0:00:21]} Qxc3 {[%emt 0:00:02]} 44. Rd1 {[%emt 0:01:27]} Qc4+ {[%emt 0:03:29]} 45. Kb1 {[%emt 0:02:51]} Kh7 {[%emt 0:00:31]} 46. Rd3 {[%emt 0:01:25]} Qe4 {[%emt 0:04:42]} 47. Rff3 {[%emt 0:01:34]} h5 {[%emt 0:03:23]} 48. h3 {[%emt 0:02:36]} Kg6 {[%emt 0:04:56]} 49. Kb2 {[%emt 0:03:09]} Kf6 {[%emt 0:00:01]} 50. gxh5 {[%emt 0:02:00]} Qb4+ {[%emt 0:01:34]} 51. Rb3 {[%emt 0:00:25]} Qd4+ {[%emt 0:00:03]} 52. Kc1 {[%emt 0:01:14]} Qd5 {[%emt 0:00:33]} 53. h6 {[%emt 0:01:13]} gxh6 {[%emt 0:00:19]} 54. Rbd3 {[%emt 0:00:22]} Qc5 {[%emt 0:00:18]} 55. Kd2 {[%emt 0:01:14]} Kf5 {[%emt 0:00:11]} 56. Rde3 {[%emt 0:00:51]} Qb4+ {[%emt 0:00:02]} 57. Kc1 {[%emt 0:00:41]} a4 {[%emt 0:00:16]} 58. Kd1 {[%emt 0:00:23]} Qd4+ {[%emt 0:00:37]} 59. Kc1 {[%emt 0:00:13]} Qa1+ {[%emt 0:00:09]} 60. Kd2 {[%emt 0:00:04]} Qb1 {[%emt 0:00:09]} 61. Re5+ {[%emt 0:00:43]} Kf6 {[%emt 0:00:02]} 62. Ree3 {[%emt 0:00:19]} Qb2 {[%emt 0:02:02]} 63. Kd1 {[%emt 0:00:13]} Ke7 {[%emt 0:00:19]} 64. Rd3 {[%emt 0:01:52]} f6 {[%emt 0:00:13]} 65. Rde3 {[%emt 0:01:52]} Kf7 {[%emt 0:01:24]} 66. Kd2 {[%emt 0:01:01]} Qa1 {[%emt 0:00:16]} 67. Rc3 {[%emt 0:01:32]} Kg6 {[%emt 0:00:34]} 68. Rce3 {[%emt 0:00:47]} Qd4+ {[%emt 0:00:02]} 69. Rd3 {[%emt 0:00:07]} Qb4+ {[%emt 0:00:06]} 70. Kd1 {[%emt 0:00:13]} Qc5 {[%emt 0:01:21]} 71. Kd2 {[%emt 0:00:14]} e5 {[%emt 0:00:36]} 72. fxe5 {[%emt 0:00:15]} fxe5 {[%emt 0:00:05]} 73. Rg3+ {[%emt 0:00:19]} Kf5 {[%emt 0:00:08]} 74. Rdf3+ {[%emt 0:00:11]} Ke4 {[%emt 0:01:10]} 75. Re3+ {[%emt 0:00:29]} Kd5 {[%emt 0:00:06]} 76. Rd3+ {[%emt 0:00:06]} Ke6 {[%emt 0:00:05]} 77. Rde3 {[%emt 0:02:44]} Qb4+ {[%emt 0:00:11]} 78. Kd1 {[%emt 0:00:06]} Qd4+ {[%emt 0:00:12]} 79. Kc1 {[%emt 0:01:05]} e4 {[%emt 0:01:25]} 80. Ra3 {[%emt 0:00:19]} Kf5 {[%emt 0:00:08]} 81. Rge3 {[%emt 0:00:17]} h5 {[%emt 0:00:16]} 82. Rec3 {[%emt 0:01:08]} Kf4 {[%emt 0:00:09]} 83. Kb1 {[%emt 0:00:11]} h4 {[%emt 0:00:45]} 84. Kc1 {[%emt 0:00:52]} Ke5 {[%emt 0:01:48]} 85. Re3 {[%emt 0:00:32]} Qc5 {[%emt 0:00:35]} 86. Rec3 {[%emt 0:00:37]} Qg1+ {[%emt 0:00:33]} 87. Kd2 {[%emt 0:00:27]} Qg5+ {[%emt 0:00:27]} 88. Kd1 {[%emt 0:00:28]} Kd4 {[%emt 0:00:17]} 89. Ke1 {[%emt 0:00:37]} Qa5 {[%emt 0:00:37]} 90. Kd2 {[%emt 0:00:29]} e3+ {[%emt 0:01:07]} 0-1